bitfinex/quotes_BTCUSD_20220731
["timestamp","ask_amount","ask_price","bid_price","bid_amount"]
[1659258810788,8.394e-05,23623.0,23622.0,0.81454906]
[1659258811474,0.05308394,23623.0,23622.0,0.81454906]
[1659258811927,0.05308394,23623.0,23622.0,0.86454906]
[1659258812142,0.05308394,23623.0,23622.0,0.81454906]
[1659258812598,0.05308394,23623.0,23622.0,1.11973502]
[1659258812766,8.394e-05,23623.0,23622.0,0.81501002]
[1659258812990,8.394e-05,23623.0,23622.0,1.48938842]
[1659258813213,8.394e-05,23623.0,23622.0,1.23466342]
[1659258813417,0.02608394,23623.0,23622.0,1.53938842]
[1659258813818,0.02608394,23623.0,23622.0,1.23938842]
[1659258814811,8.394e-05,23623.0,23622.0,1.23938842]
[1659258815525,0.07908394,23623.0,23622.0,1.23938842]
[1659258816224,0.07908394,23623.0,23622.0,1.3462159]
[1659258816441,0.07908394,23623.0,23622.0,1.2962159]
[1659258816968,8.394e-05,23623.0,23622.0,1.2962159]
[1659258817411,8.394e-05,23623.0,23622.0,1.3752159]
[1659258819196,8.394e-05,23623.0,23622.0,1.2962159]
[1659258819441,8.394e-05,23623.0,23622.0,1.3752159]
[1659258820573,8.394e-05,23623.0,23622.0,0.96257242]
[1659258821310,8.394e-05,23623.0,23622.0,0.88357242]
[1659258821525,8.394e-05,23623.0,23622.0,0.93657242]
[1659258821975,8.394e-05,23623.0,23622.0,0.91691902]
[1659258822211,0.05517394,23623.0,23622.0,0.61219402]
[1659258822438,0.05517394,23623.0,23622.0,0.50490229]
[1659258822668,8.394e-05,23623.0,23622.0,0.50490229]
[1659258822895,8.394e-05,23623.0,23622.0,0.45190229]
[1659258823622,0.07908394,23623.0,23622.0,0.45190229]
[1659258824309,0.07908394,23623.0,23622.0,0.4548462]
[1659258824537,0.07908394,23623.0,23622.0,0.45144133]
[1659258824790,8.394e-05,23623.0,23622.0,0.45144133]
[1659258825231,8.394e-05,23623.0,23622.0,0.4548462]
[1659258825454,0.01108394,23623.0,23622.0,0.7548462]
[1659258826364,0.01108394,23623.0,23622.0,1.1095712]
[1659258826577,0.01108394,23623.0,23622.0,0.8048462]
[1659258826794,0.01108394,23623.0,23622.0,0.7548462]
[1659258827266,8.394e-05,23623.0,23622.0,0.8244996]
[1659258827484,0.07508394,23623.0,23622.0,0.8244996]
[1659258828184,0.07508394,23623.0,23622.0,1.1292246]
[1659258828411,0.07508394,23623.0,23622.0,0.8244996]
[1659258828854,0.07508394,23623.0,23622.0,1.1292246]
[1659258828855,8.394e-05,23623.0,23622.0,1.1292246]
[1659258829086,8.394e-05,23623.0,23622.0,0.8244996]
[1659258829317,8.394e-05,23623.0,23622.0,1.1292246]
[1659258829535,0.07508394,23623.0,23622.0,1.1292246]
[1659258829811,0.07508394,23623.0,23622.0,0.8744996]
[1659258830043,0.07508394,23623.0,23622.0,0.8244996]
[1659258830487,0.07508394,23623.0,23622.0,1.1292246]
[1659258830711,8.394e-05,23623.0,23622.0,1.1292246]
[1659258830944,2.36009121,23630.0,23623.0,1.371e-05]
[1659258831169,0.304725,23629.0,23624.0,0.40725733]
[1659258831385,0.218662,23628.0,23624.0,0.41454906]
[1659258831602,0.34125302,23627.0,23624.0,0.41454906]
[1659258831839,0.218662,23626.0,23624.0,0.41454906]
[1659258832063,0.03652802,23627.0,23624.0,0.41454906]
[1659258832334,0.304725,23626.0,23625.0,0.05]
[1659258832573,2.32832121,23630.0,23624.0,0.41454906]
[1659258832810,0.304725,23629.0,23624.0,0.46454906]
[1659258833021,0.218662,23628.0,23624.0,0.41454906]
[1659258833246,0.34125302,23627.0,23624.0,0.41454906]
[1659258833471,0.052,23629.0,23624.0,0.41454906]
[1659258833697,0.304725,23628.0,23624.0,0.46454906]
[1659258833922,0.052,23629.0,23624.0,0.46454906]
[1659258834148,0.304725,23628.0,23624.0,0.46454906]
[1659258834388,0.03652802,23627.0,23624.0,0.46454906]
[1659258834599,0.052,23629.0,23624.0,0.46454906]
[1659258834892,0.304725,23628.0,23624.0,0.46454906]
[1659258835111,2.32832121,23630.0,23624.0,0.46454906]
[1659258835337,0.304725,23629.0,23624.0,0.46454906]
[1659258835547,0.052,23629.0,23624.0,0.46454906]
[1659258836013,0.052,23629.0,23624.0,0.47743109]
[1659258836742,0.304725,23628.0,23624.0,0.47743109]
[1659258836972,0.03652802,23627.0,23624.0,0.47743109]
[1659258837201,2.32832121,23630.0,23625.0,0.00326461]
[1659258837424,0.079,23628.0,23625.0,0.30326461]
[1659258837664,0.079,23628.0,23625.0,0.3]
[1659258837905,0.08085486,23628.0,23625.0,0.3]
[1659258838137,0.11552802,23628.0,23625.0,0.3]
[1659258838366,0.11552802,23628.0,23625.0,0.30326461]
[1659258838826,0.03652802,23628.0,23625.0,0.30729173]
[1659258839301,0.03652802,23628.0,23626.0,0.05]
[1659258839559,0.03652802,23628.0,23625.0,0.00729173]
[1659258839560,0.304725,23627.0,23625.0,0.00729173]
[1659258839783,0.11552802,23628.0,23624.0,0.47013936]
[1659258840284,0.11552802,23628.0,23624.0,0.42013936]
[1659258840716,0.03652802,23628.0,23624.0,0.42013936]
[1659258840832,0.03652802,23628.0,23624.0,0.47013936]
[1659258841058,0.03652802,23628.0,23624.0,0.42013936]
[1659258842309,0.304725,23627.0,23624.0,0.42013936]
[1659258842597,0.03652802,23628.0,23624.0,0.42013936]
[1659258842811,0.03652802,23628.0,23625.0,0.00096623]
[1659258843029,0.304725,23627.0,23624.0,0.47743109]
[1659258843243,0.03652802,23628.0,23624.0,0.42743109]
[1659258843621,0.03652802,23628.0,23625.0,0.00096623]
[1659258843872,0.304725,23627.0,23625.0,0.00096623]
[1659258844045,2.32832121,23630.0,23625.0,0.00096623]
[1659258844210,0.304725,23629.0,23625.0,0.00096623]
[1659258844602,0.218662,23628.0,23625.0,0.00096623]
[1659258844824,0.304725,23627.0,23625.0,0.00096623]
[1659258845025,2.32832121,23630.0,23625.0,0.00096623]
[1659258845234,0.304725,23629.0,23624.0,0.48979276]
[1659258845373,0.218662,23628.0,23624.0,0.48979276]
[1659258845572,2.32832121,23630.0,23625.0,0.00142875]
[1659258845776,0.304725,23629.0,23625.0,0.00142875]
[1659258846167,0.218662,23628.0,23627.0,0.0196534]
[1659258846371,0.297662,23628.0,23627.0,0.0196534]
[1659258847100,0.304725,23627.0,23625.0,0.3]
[1659258847270,0.03652802,23626.0,23624.0,0.48979276]
[1659258847532,2.32832121,23630.0,23624.0,0.49122157]
[1659258847742,0.383725,23629.0,23624.0,0.49122157]
[1659258847916,0.079,23629.0,23624.0,0.49122157]
[1659258848925,2.32832121,23630.0,23624.0,0.49122157]
[1659258849134,0.304725,23629.0,23624.0,0.47156817]
[1659258849361,0.218662,23628.0,23624.0,0.42013936]
[1659258849590,0.34125302,23627.0,23624.0,0.42743109]
[1659258849818,0.218662,23626.0,23624.0,0.42013936]
[1659258850034,0.304725,23628.0,23624.0,0.42068935]
[1659258850304,0.304725,23628.0,23624.0,0.42013936]
[1659258850521,0.304725,23628.0,23624.0,0.42743109]
[1659258850732,0.304725,23628.0,23624.0,0.48979276]
[1659258850941,0.03652802,23627.0,23625.0,0.00054997]
[1659258851182,0.079,23627.0,23624.0,0.43979276]
[1659258851628,0.079,23627.0,23624.0,0.44708449]
[1659258851831,0.03652802,23626.0,23624.0,0.44708449]
[1659258852248,0.03642202,23626.0,23624.0,0.43979276]
[1659258852688,0.158,23627.0,23625.0,0.00054997]
[1659258852923,0.08085486,23627.0,23624.0,0.43979276]
[1659258853132,2.32832121,23630.0,23624.0,0.38889877]
[1659258853361,0.304725,23629.0,23624.0,0.38889877]
[1659258853583,0.218662,23628.0,23624.0,0.3961905]
[1659258853813,0.304725,23627.0,23624.0,0.3961905]
[1659258854021,0.00185486,23626.0,23624.0,0.3961905]
[1659258854237,2.32832121,23630.0,23624.0,0.3961905]
[1659258854440,0.304725,23629.0,23624.0,0.3961905]
[1659258854702,0.304725,23627.0,23625.0,0.05]
[1659258854936,0.22051686,23626.0,23624.0,0.3961905]
[1659258855152,2.32832121,23630.0,23624.0,0.38889877]
[1659258855418,0.304725,23629.0,23624.0,0.3961905]
[1659258855623,0.218662,23628.0,23624.0,0.3961905]
[1659258855743,0.304725,23627.0,23624.0,0.3961905]
[1659258855953,2.32832121,23630.0,23624.0,0.38889877]
[1659258856155,0.304725,23629.0,23624.0,0.43889877]
[1659258856388,0.218662,23628.0,23624.0,0.38889877]
[1659258856592,0.304725,23627.0,23624.0,0.38889877]
[1659258856810,0.03467316,23626.0,23624.0,0.43889877]
[1659258857016,0.3,23629.0,23625.0,0.05]
[1659258857224,0.218662,23627.0,23624.0,0.44744746]
[1659258857424,0.079,23628.0,23624.0,0.4461905]
[1659258857653,0.304725,23627.0,23624.0,0.38889877]
[1659258857885,0.03467316,23626.0,23624.0,0.36924537]
[1659258858343,0.03652802,23626.0,23624.0,0.36924537]
[1659258858556,0.25519002,23626.0,23624.0,0.36924537]
[1659258858787,0.304725,23625.0,23624.0,0.36924537]
[1659258859015,0.03652802,23626.0,23624.0,0.36924537]
[1659258859263,0.304725,23625.0,23624.0,0.36924537]
[1659258859477,0.03652802,23626.0,23624.0,0.36924537]
[1659258859688,0.304725,23625.0,23624.0,0.36924537]
[1659258859915,0.3,23629.0,23624.0,0.36924537]
[1659258860136,0.304725,23628.0,23624.0,0.3765371]
[1659258860388,0.218662,23627.0,23624.0,0.36924537]
[1659258860586,0.304725,23626.0,23624.0,0.36924537]
[1659258860798,0.3,23629.0,23624.0,0.36924537]
[1659258861004,0.218662,23627.0,23624.0,0.36924537]
[1659258861214,0.304725,23626.0,23624.0,0.36924537]
[1659258861439,0.218662,23625.0,23624.0,0.36924537]
[1659258861902,0.0303466,23628.0,23623.0,1.371e-05]
[1659258862112,1.04270827,23624.0,23623.0,1.371e-05]
[1659258862323,1.26137027,23624.0,23623.0,1.371e-05]
[1659258863486,1.29789829,23624.0,23623.0,1.371e-05]
[1659258864344,1.33689829,23624.0,23623.0,1.371e-05]
[1659258865690,1.29789829,23624.0,23623.0,1.371e-05]
[1659258866358,0.33689829,23624.0,23623.0,1.371e-05]
[1659258867692,0.29789829,23624.0,23623.0,1.371e-05]
[1659258868309,0.33689829,23624.0,23623.0,1.371e-05]
[1659258869174,0.29419002,23624.0,23623.0,1.371e-05]
[1659258871600,0.25519002,23624.0,23623.0,1.371e-05]
[1659258874675,0.29419002,23624.0,23623.0,1.371e-05]
[1659258876163,0.25519002,23624.0,23623.0,1.371e-05]
[1659258885773,0.29419002,23624.0,23623.0,1.371e-05]
[1659258886220,0.33819002,23624.0,23623.0,1.371e-05]
[1659258886612,1.23819002,23624.0,23623.0,1.371e-05]
[1659258887202,0.33819002,23624.0,23623.0,1.371e-05]
[1659258887593,0.25519002,23624.0,23623.0,1.371e-05]
[1659258887950,0.29919002,23624.0,23623.0,1.371e-05]
[1659258889202,0.25519002,23624.0,23623.0,1.371e-05]
[1659258889902,0.29919002,23624.0,23623.0,1.371e-05]
[1659258891266,0.25519002,23624.0,23623.0,1.371e-05]
[1659258894335,0.29919002,23624.0,23623.0,1.371e-05]
[1659258894760,0.34319002,23624.0,23623.0,1.371e-05]
[1659258895551,0.25519002,23624.0,23623.0,1.371e-05]
[1659258896523,0.29919002,23624.0,23623.0,1.371e-05]
[1659258897669,0.25519002,23624.0,23623.0,1.371e-05]
[1659258898356,0.29919002,23624.0,23623.0,1.371e-05]
[1659258900145,0.25519002,23624.0,23623.0,1.371e-05]
[1659258900367,0.29919002,23624.0,23623.0,1.371e-05]
[1659258902214,0.25519002,23624.0,23623.0,1.371e-05]
[1659258902428,0.29919002,23624.0,23623.0,1.371e-05]
[1659258903596,0.25519002,23624.0,23623.0,1.371e-05]
[1659258904263,0.29919002,23624.0,23623.0,1.371e-05]
[1659258906202,0.25519002,23624.0,23623.0,1.371e-05]
[1659258906434,0.29919002,23624.0,23623.0,1.371e-05]
[1659258907553,0.25519002,23624.0,23623.0,1.371e-05]
[1659258907791,1.40804735,23624.0,23623.0,1.371e-05]
[1659258908024,1.40804735,23624.0,23613.0,0.364]
[1659258908025,0.65,23622.0,23617.0,0.00729173]
[1659258908249,0.71198233,23621.0,23613.0,0.364]
[1659258908510,1.39388021,23623.0,23613.0,0.364]
[1659258908511,0.218662,23620.0,23619.0,0.0196534]
[1659258908774,0.30478494,23623.0,23619.0,0.0196534]
[1659258909456,0.00832555,23621.0,23619.0,0.0196534]
[1659258909683,0.00832555,23621.0,23620.0,0.0196534]
[1659258910359,0.05532555,23621.0,23620.0,0.0196534]
[1659258911768,0.04485357,23621.0,23620.0,0.0196534]
[1659258912006,0.00832555,23621.0,23620.0,0.0196534]
[1659258912447,0.05532555,23621.0,23620.0,0.0196534]
[1659258912711,0.05532555,23621.0,23620.0,0.42691073]
[1659258912925,0.05532555,23621.0,23620.0,1.34427921]
[1659258913374,0.05532555,23621.0,23620.0,1.04427921]
[1659258913613,0.00832555,23621.0,23620.0,1.04427921]
[1659258914044,0.00832555,23621.0,23620.0,0.72691073]
[1659258914294,0.08732555,23621.0,23620.0,0.72691073]
[1659258915645,0.00832555,23621.0,23620.0,0.72691073]
[1659258916550,0.08732555,23621.0,23620.0,0.72691073]
[1659258917764,0.00832555,23621.0,23620.0,0.72691073]
[1659258918940,0.00832555,23621.0,23620.0,0.42691073]
[1659258919376,0.08732555,23621.0,23620.0,0.42691073]
[1659258920272,0.08732555,23621.0,23620.0,0.72691073]
[1659258921438,0.08732555,23621.0,23620.0,0.77691073]
[1659258921674,0.00832555,23621.0,23620.0,0.77691073]
[1659258922321,0.00832555,23621.0,23620.0,0.42691073]
[1659258923277,0.00832555,23621.0,23620.0,0.72691073]
[1659258923278,0.08732555,23621.0,23620.0,0.72691073]
[1659258924598,0.00832555,23621.0,23620.0,0.77691073]
[1659258924817,0.08732555,23621.0,23620.0,0.77691073]
[1659258926188,0.00832555,23621.0,23620.0,0.77691073]
[1659258926412,0.08732555,23621.0,23620.0,0.77691073]
[1659258926919,0.08732555,23621.0,23620.0,0.83955421]
[1659258927374,0.08732555,23621.0,23620.0,0.78955421]
[1659258927874,0.00832555,23621.0,23620.0,0.78955421]
[1659258928552,0.08732555,23621.0,23620.0,0.83955421]
[1659258928771,0.08732555,23621.0,23620.0,0.78955421]
[1659258929231,0.08732555,23621.0,23620.0,0.77691073]
[1659258929464,0.08732555,23621.0,23620.0,0.82691073]
[1659258929693,0.08732555,23621.0,23620.0,0.77691073]
[1659258929910,0.00832555,23621.0,23620.0,0.83045951]
[1659258930345,0.08732555,23621.0,23620.0,0.83045951]
[1659258931050,0.08721181,23621.0,23620.0,0.83045951]
[1659258931750,0.00821181,23621.0,23620.0,0.83045951]
[1659258932435,0.08721181,23621.0,23620.0,0.83045951]
[1659258933784,0.00821181,23621.0,23620.0,0.83045951]
[1659258934508,0.08721181,23621.0,23620.0,0.83045951]
[1659258935630,0.00821181,23621.0,23620.0,0.83045951]
[1659258936084,0.00821181,23621.0,23620.0,0.78045951]
[1659258936309,0.00821181,23621.0,23620.0,0.83045951]
[1659258936535,0.08721181,23621.0,23620.0,0.83045951]
[1659258936760,0.08721181,23621.0,23620.0,0.78045951]
[1659258937008,0.08721181,23621.0,23620.0,0.83045951]
[1659258939775,0.00821181,23621.0,23620.0,0.83045951]
[1659258940224,0.00821181,23621.0,23620.0,1.43518451]
[1659258940444,0.07451181,23621.0,23620.0,1.44782799]
[1659258940671,0.07451181,23621.0,23620.0,1.55934299]
[1659258940933,5.994e-05,23623.0,23620.0,1.55934299]
[1659258940934,5.994e-05,23623.0,23622.0,1.10729173]
[1659258941185,5.994e-05,23623.0,23622.0,2.54225106]
[1659258941406,5.994e-05,23623.0,23622.0,2.85489454]
[1659258942338,5.994e-05,23623.0,23622.0,2.96789454]
[1659258942591,5.994e-05,23623.0,23622.0,3.01789454]
[1659258943510,5.994e-05,23623.0,23622.0,3.00525106]
[1659258943734,5.994e-05,23623.0,23622.0,2.94225106]
[1659258944395,5.994e-05,23623.0,23622.0,3.01889454]
[1659258945834,5.994e-05,23623.0,23622.0,2.95489454]
[1659258946506,5.994e-05,23623.0,23622.0,3.01825106]
[1659258947702,5.994e-05,23623.0,23622.0,2.94225106]
[1659258949045,5.994e-05,23623.0,23622.0,2.64225106]
[1659258951341,5.994e-05,23623.0,23622.0,2.71825106]
[1659258953131,5.994e-05,23623.0,23622.0,2.64225106]
[1659258953583,2.27838115,23630.0,23623.0,0.10729173]
[1659258953807,2.27838115,23630.0,23624.0,0.61875333]
[1659258954035,2.27838115,23630.0,23625.0,0.70725733]
[1659258954254,2.27838115,23630.0,23626.0,0.45725733]
[1659258954481,0.30657986,23629.0,23627.0,0.70725733]
[1659258954741,0.218662,23628.0,23627.0,0.05086048]
[1659258954966,2.27838115,23630.0,23627.0,0.46540954]
[1659258955201,2.27838115,23630.0,23628.0,0.70725733]
[1659258955439,0.304725,23629.0,23628.0,0.70725733]
[1659258955673,2.27838115,23630.0,23628.0,0.70725733]
[1659258955915,0.304725,23629.0,23628.0,0.70725733]
[1659258956120,2.27838115,23630.0,23628.0,0.70725733]
[1659258956382,0.304725,23629.0,23628.0,0.70725733]
[1659258956630,2.27838115,23630.0,23628.0,0.70725733]
[1659258956848,0.304725,23629.0,23628.0,0.70725733]
[1659258957063,2.27838115,23630.0,23628.0,0.70725733]
[1659258957296,0.304725,23629.0,23628.0,0.70725733]
[1659258957514,2.27838115,23630.0,23628.0,0.70725733]
[1659258958232,0.304725,23629.0,23628.0,0.70725733]
[1659258958448,2.31490917,23630.0,23628.0,0.70725733]
[1659258958696,2.27838115,23630.0,23628.0,0.70725733]
[1659258958927,2.27838115,23630.0,23629.0,0.75725733]
[1659258959147,2.27838115,23630.0,23629.0,1.34892991]
[1659258959363,2.27838115,23630.0,23629.0,1.04892991]
[1659258959577,2.27838115,23630.0,23629.0,0.76990081]
[1659258959804,2.35438115,23630.0,23629.0,0.75725733]
[1659258960309,2.35438115,23630.0,23629.0,0.7606426]
[1659258961199,2.27838115,23630.0,23629.0,0.7606426]
[1659258962524,2.27838115,23630.0,23629.0,0.76053841]
[1659258962749,2.27838115,23630.0,23629.0,1.06526341]
[1659258963393,2.27838115,23630.0,23629.0,1.12126341]
[1659258963847,2.27838115,23630.0,23629.0,1.42126341]
[1659258964365,2.27838115,23630.0,23629.0,1.12126341]
[1659258964809,2.27838115,23630.0,23629.0,1.06526341]
[1659258965465,2.27838115,23630.0,23629.0,1.14526341]
[1659258965700,2.27838115,23630.0,23629.0,1.49526341]
[1659258966405,2.27838115,23630.0,23629.0,1.19526341]
[1659258966831,2.27838115,23630.0,23629.0,1.11526341]
[1659258967280,2.27838115,23630.0,23629.0,1.42790689]
[1659258967506,2.27838115,23630.0,23629.0,1.50690689]
[1659258968015,2.24945968,23630.0,23629.0,1.50690689]
[1659258968462,2.24945968,23630.0,23629.0,1.49426341]
[1659258968463,2.21734067,23630.0,23629.0,1.49426341]
[1659258969416,2.21734067,23630.0,23629.0,1.46326341]
[1659258969628,1.82144538,23630.0,23629.0,1.46326341]
[1659258970347,1.82144538,23630.0,23629.0,1.56326341]
[1659258970679,0.00606448,23632.0,23631.0,0.15729173]
[1659258970905,1.96806448,23640.0,23635.0,0.1]
[1659258971126,1.96806448,23640.0,23638.0,0.40725733]
[1659258971349,1.96806448,23640.0,23639.0,0.3]
[1659258971578,1.96806448,23640.0,23639.0,0.75725733]
[1659258972939,1.95536448,23640.0,23639.0,0.75725733]
[1659258973402,1.95536448,23640.0,23639.0,0.78375559]
[1659258974808,0.0022,23643.0,23642.0,0.10729173]
[1659258975048,0.002,23644.0,23643.0,0.10729173]
[1659258975295,0.002,23644.0,23643.0,1.16927406]
[1659258975535,2.07607362,23650.0,23648.0,0.10729173]
[1659258975794,2.07607362,23650.0,23648.0,0.79868962]
[1659258976025,2.07607362,23650.0,23648.0,0.50725733]
[1659258976262,2.01177787,23650.0,23649.0,0.10729173]
[1659258976500,2.01177787,23650.0,23649.0,0.86454906]
[1659258976735,2.01177787,23650.0,23649.0,0.80725733]
[1659258977199,2.01177787,23650.0,23649.0,0.75725733]
[1659258977441,2.01177787,23650.0,23649.0,0.77225733]
[1659258977666,2.01177787,23650.0,23649.0,0.72225733]
[1659258978139,2.01177787,23650.0,23649.0,0.82225733]
[1659258978431,2.01177787,23650.0,23649.0,1.12698233]
[1659258979139,2.01177787,23650.0,23649.0,0.82225733]
[1659258979623,2.01177787,23650.0,23649.0,1.15098233]
[1659258980799,1.98306194,23650.0,23649.0,1.15098233]
[1659258981494,1.98306194,23650.0,23649.0,1.19962581]
[1659258982664,1.98306194,23650.0,23649.0,1.18698233]
[1659258982897,1.98306194,23650.0,23649.0,1.19379575]
[1659258983584,1.98306194,23650.0,23649.0,1.24643923]
[1659258983810,1.95770061,23650.0,23649.0,1.24643923]
[1659258984042,1.95770061,23650.0,23649.0,0.83582984]
[1659258984272,1.95770061,23650.0,23649.0,1.14055484]
[1659258985196,1.95770061,23650.0,23649.0,0.52225733]
[1659258985481,1.95770061,23650.0,23649.0,0.56125733]
[1659258986412,1.95770061,23650.0,23649.0,1.27862581]
[1659258986639,1.95770061,23650.0,23649.0,1.57009012]
[1659258987583,1.95770061,23650.0,23649.0,1.61309012]
[1659258987824,1.95770061,23650.0,23649.0,1.32162581]
[1659258989465,1.95770061,23650.0,23649.0,1.31462581]
[1659258989707,1.95770061,23650.0,23649.0,1.05990081]
[1659258989921,1.95770061,23650.0,23649.0,1.36462581]
[1659258990166,1.95770061,23650.0,23649.0,0.95990081]
[1659258990388,1.95770061,23650.0,23649.0,1.26462581]
[1659258990611,1.95770061,23650.0,23649.0,1.31462581]
[1659258990835,1.95770061,23650.0,23649.0,0.65990081]
[1659258991115,1.95770061,23650.0,23649.0,0.96462581]
[1659258991361,1.95770061,23650.0,23649.0,0.65990081]
[1659258992258,1.95770061,23650.0,23649.0,0.41990081]
[1659258992259,1.99422863,23650.0,23649.0,0.41990081]
[1659258992491,1.95770061,23650.0,23649.0,0.41990081]
[1659258993406,1.95770061,23650.0,23649.0,0.44490081]
[1659258993916,1.95770061,23650.0,23649.0,0.42671423]
[1659258994134,1.95770061,23650.0,23649.0,0.72671423]
[1659258995288,1.95770061,23650.0,23649.0,0.82671423]
[1659258995532,1.95770061,23650.0,23649.0,0.85171423]
[1659258995739,1.95770061,23650.0,23649.0,0.75171423]
[1659258996237,1.95770061,23650.0,23649.0,0.72671423]
[1659258996697,1.99422863,23650.0,23649.0,0.40725733]
[1659258996951,1.95770061,23650.0,23649.0,0.70725733]
[1659258997433,1.95770061,23650.0,23649.0,0.43225733]
[1659258997887,1.95770061,23650.0,23649.0,0.40725733]
[1659258998113,1.95770061,23650.0,23649.0,0.70725733]
[1659258999097,1.95770061,23650.0,23649.0,0.71990081]
[1659258999571,1.95770061,23650.0,23649.0,0.74680081]
[1659259000050,1.95770061,23650.0,23649.0,0.84680081]
[1659259000500,1.95770061,23650.0,23649.0,0.74680081]
[1659259000767,1.95770061,23650.0,23649.0,0.71980081]
[1659259001461,1.95770061,23650.0,23649.0,0.79680081]
[1659259001693,1.95770061,23650.0,23649.0,0.84680081]
[1659259001923,1.95770061,23650.0,23649.0,0.74680081]
[1659259002154,1.95770061,23650.0,23649.0,0.84680081]
[1659259002383,1.95770061,23650.0,23649.0,0.74680081]
[1659259002897,1.95770061,23650.0,23649.0,0.79680081]
[1659259003346,1.95770061,23650.0,23649.0,1.12452581]
[1659259003584,1.95770061,23650.0,23649.0,1.15152581]
[1659259003820,1.95770061,23650.0,23649.0,0.84680081]
[1659259004033,1.95770061,23650.0,23649.0,1.15152581]
[1659259004700,1.95770061,23650.0,23649.0,1.12452581]
[1659259004926,1.95770061,23650.0,23649.0,0.76980081]
[1659259005140,1.95770061,23650.0,23649.0,0.81980081]
[1659259005352,1.95770061,23650.0,23649.0,0.76980081]
[1659259005579,1.95770061,23650.0,23649.0,1.10552581]
[1659259005801,1.95770061,23650.0,23649.0,1.15552581]
[1659259006742,1.95770061,23650.0,23649.0,1.12452581]
[1659259006980,1.99422863,23650.0,23649.0,0.72452581]
[1659259007231,1.99422863,23650.0,23649.0,0.41980081]
[1659259007232,1.95770061,23650.0,23649.0,0.41980081]
[1659259007473,1.95770061,23650.0,23649.0,0.45080081]
[1659259008166,1.95770061,23650.0,23649.0,0.45761423]
[1659259008411,1.95770061,23650.0,23649.0,0.80761423]
[1659259008676,1.95770061,23650.0,23649.0,1.16233923]
[1659259008900,1.95770061,23650.0,23649.0,1.13133923]
[1659259009420,1.95770061,23650.0,23649.0,1.16633923]
[1659259010806,1.95770061,23650.0,23649.0,1.13133923]
[1659259011518,1.95770061,23650.0,23649.0,1.16633923]
[1659259012905,1.95770061,23650.0,23649.0,1.13133923]
[1659259013352,1.95770061,23650.0,23649.0,1.16633923]
[1659259014742,1.95770061,23650.0,23649.0,1.11869575]
[1659259015451,1.95770061,23650.0,23649.0,1.15369575]
[1659259015684,1.95770061,23650.0,23649.0,1.15896281]
[1659259016130,1.95770061,23650.0,23649.0,0.85423781]
[1659259016371,1.95770061,23650.0,23649.0,1.15896281]
[1659259016596,1.95770061,23650.0,23649.0,0.80423781]
[1659259016820,1.95770061,23650.0,23649.0,0.76923781]
[1659259017048,1.95770061,23650.0,23649.0,0.81923781]
[1659259017285,1.95270061,23650.0,23649.0,1.12396281]
[1659259017524,1.95270061,23650.0,23649.0,0.85423781]
[1659259018669,1.95270061,23650.0,23649.0,1.12396281]
[1659259018900,1.95270061,23650.0,23649.0,0.81923781]
[1659259019136,1.95270061,23650.0,23649.0,1.12396281]
[1659259019361,1.95270061,23650.0,23649.0,0.81923781]
[1659259019587,1.95270061,23650.0,23649.0,0.85423781]
[1659259020924,1.95270061,23650.0,23649.0,1.15896281]
[1659259021145,1.95270061,23650.0,23649.0,1.12396281]
[1659259021355,1.98922863,23650.0,23649.0,1.05952581]
[1659259021518,2.29395363,23650.0,23649.0,0.44215733]
[1659259021728,1.98922863,23650.0,23649.0,0.44215733]
[1659259022657,1.98922863,23650.0,23649.0,0.45480081]
[1659259022885,1.95270061,23650.0,23649.0,0.45480081]
[1659259023311,1.95270061,23650.0,23649.0,0.48880081]
[1659259023542,1.95270061,23650.0,23649.0,0.45380081]
[1659259023771,1.95270061,23650.0,23649.0,0.75380081]
[1659259024199,1.95270061,23650.0,23649.0,0.80380081]
[1659259024484,1.95270061,23650.0,23649.0,0.75380081]
[1659259024707,1.95270061,23650.0,23649.0,0.71980081]
[1659259025366,1.95270061,23650.0,23649.0,0.74480081]
[1659259026685,1.95270061,23650.0,23649.0,0.71980081]
[1659259027343,1.95270061,23650.0,23649.0,0.74480081]
[1659259028722,1.95270061,23650.0,23649.0,0.71980081]
[1659259028938,1.95270061,23650.0,23649.0,0.40715733]
[1659259029173,2.25742561,23650.0,23649.0,0.40715733]
[1659259029397,2.25742561,23650.0,23649.0,0.42915733]
[1659259029655,2.24742561,23650.0,23649.0,0.42915733]
[1659259030084,1.94270061,23650.0,23649.0,0.42915733]
[1659259030309,1.94270061,23650.0,23649.0,0.44180081]
[1659259030763,1.94270061,23650.0,23649.0,0.41980081]
[1659259031408,2.24742561,23650.0,23649.0,0.44780081]
[1659259031650,1.94270061,23650.0,23649.0,0.44780081]
[1659259031866,2.24742561,23650.0,23649.0,0.44780081]
[1659259032352,2.24742561,23650.0,23649.0,0.04064348]
[1659259032353,2.27916561,23650.0,23649.0,0.04064348]
[1659259032571,2.32916561,23650.0,23649.0,0.028]
[1659259032816,2.32916561,23650.0,23642.0,0.38184348]
[1659259033036,2.32916561,23650.0,23643.0,0.40725733]
[1659259033037,0.518662,23649.0,23643.0,0.40725733]
[1659259033273,0.304725,23648.0,23643.0,0.40725733]
[1659259033489,0.218662,23647.0,23643.0,0.41454906]
[1659259033704,0.304725,23646.0,23644.0,0.70725733]
[1659259033922,0.05,23649.0,23645.0,0.40725733]
[1659259034142,0.304725,23648.0,23645.0,0.40725733]
[1659259034640,0.04270827,23646.0,23645.0,0.40725733]
[1659259035275,0.34743327,23646.0,23645.0,0.78325733]
[1659259036618,0.34743327,23646.0,23643.0,0.01264348]
[1659259036846,0.22051686,23645.0,23644.0,0.40725733]
[1659259037072,0.04270827,23646.0,23644.0,0.70725733]
[1659259037278,0.304725,23645.0,23644.0,0.70725733]
[1659259037507,0.04270827,23646.0,23644.0,0.71990081]
[1659259037725,0.04270827,23646.0,23645.0,0.3]
[1659259037940,0.304725,23646.0,23645.0,0.3]
[1659259038158,0.304725,23646.0,23644.0,0.41990081]
[1659259038379,0.26137027,23645.0,23644.0,0.41990081]
[1659259038599,0.04270827,23645.0,23644.0,0.41990081]
[1659259038816,0.33171,23649.0,23644.0,0.71990081]
[1659259039036,0.304725,23648.0,23644.0,0.71990081]
[1659259039269,0.33171,23649.0,23645.0,0.3]
[1659259039270,0.25519002,23647.0,23645.0,0.3]
[1659259039515,0.34743327,23646.0,23645.0,0.3]
[1659259040036,0.04270827,23646.0,23645.0,0.3]
[1659259040255,0.34743327,23646.0,23645.0,0.3]
[1659259040464,0.38396129,23646.0,23645.0,0.3]
[1659259040950,0.34743327,23646.0,23645.0,0.3]
[1659259041395,0.38396129,23646.0,23645.0,0.076]
[1659259042082,0.07923629,23646.0,23645.0,0.076]
[1659259042296,0.38396129,23646.0,23645.0,0.076]
[1659259042742,0.38396129,23646.0,23644.0,0.40725733]
[1659259042967,0.04270827,23645.0,23644.0,0.40725733]
[1659259043181,0.03652802,23646.0,23644.0,0.70725733]
[1659259043418,0.304725,23645.0,23644.0,0.70725733]
[1659259043645,0.38171,23649.0,23644.0,0.70725733]
[1659259043874,0.304725,23648.0,23645.0,0.3]